fUSD/lending_fUSD_20240712
["ID","MTS","AMOUNT","RATE_DAILY","PERIOD"]
[331854698,1720794683962,-500.0,0.00014027,2]
[331854699,1720794683972,-641.89,0.00014027,2]
[331854700,1720794683982,-782.48,0.00014027,2]
[331854701,1720794683991,-500.0,0.00014027,2]
[331854702,1720794684002,-500.0,0.00014027,2]
[331854703,1720794684012,-500.0,0.00014027,2]
[331854704,1720794684021,-648.56,0.00014027,2]
[331854705,1720794684031,-621.66,0.00014027,2]
[331854706,1720794684040,-500.0,0.00014027,2]
[331854707,1720794684050,-500.0,0.00014027,2]
[331854708,1720794684060,-837.4,0.00014027,2]
[331854709,1720794684071,-500.0,0.00014027,2]
[331854710,1720794684083,-1217.56,0.00014027,2]
[331854711,1720794684094,-500.0,0.00014027,2]
[331854712,1720794684103,-819.84,0.00014027,2]
[331854713,1720794684112,-500.0,0.00014027,2]
[331854714,1720794684122,-500.0,0.00014027,2]
[331854715,1720794684131,-1064.23,0.00014027,2]
[331854716,1720794684140,-500.0,0.00014027,2]
[331854717,1720794684149,-4271.54,0.00014027,2]
[331854718,1720794684160,-1838.14,0.00014027,2]
[331854719,1720794684169,-500.0,0.00014027,2]
[331854720,1720794684179,-989.52,0.00014027,2]
[331854721,1720794684188,-500.0,0.00014027,2]
[331854722,1720794684200,-500.0,0.00014027,2]
[331854723,1720794684213,-1038.55,0.00014027,2]
[331854724,1720794684223,-835.73,0.00014027,2]
[331854725,1720794684232,-500.0,0.00014027,2]
[331854726,1720794684242,-720.1,0.00014027,2]
[331854727,1720794684252,-500.0,0.00014027,2]
[331854728,1720794684261,-903.17,0.00014027,2]
[331854729,1720794684271,-948.98,0.00014027,2]
[331854730,1720794684280,-852.64,0.00014027,2]
[331854731,1720794684289,-500.0,0.00014027,2]
[331854732,1720794684298,-500.0,0.00014027,2]
[331854733,1720794684308,-500.0,0.00014027,2]
[331854734,1720794684317,-500.0,0.00014027,2]
[331854735,1720794684326,-540.42,0.00014027,2]
[331854736,1720794684336,-2299.04,0.00014027,2]
[331854737,1720794684345,-1111.09,0.00014027,2]
[331854738,1720794684354,-847.27,0.00014027,2]
[331854739,1720794684364,-500.0,0.00014027,2]
[331854740,1720794684373,-563.5,0.00014027,2]
[331854741,1720794684383,-1080.3,0.00014027,2]
[331854742,1720794684392,-500.0,0.00014027,2]
[331854743,1720794684401,-792.46,0.00014027,2]
[331854744,1720794684410,-1087.76,0.00014027,2]
[331854745,1720794684420,-777.64,0.00014027,2]
[331854746,1720794684431,-500.0,0.00014027,2]
[331854747,1720794684441,-500.0,0.00014027,2]
[331854748,1720794684451,-859.86,0.00014027,2]
[331854749,1720794684464,-595.98,0.00014027,2]
[331854750,1720794684474,-500.0,0.00014027,2]
[331854751,1720794684484,-500.0,0.00014027,2]
[331854752,1720794684493,-966.7,0.00014027,2]
[331854753,1720794684503,-770.6,0.00014027,2]
[331854754,1720794684513,-500.0,0.00014027,2]
[331854755,1720794684523,-1183.71,0.00014027,2]
[331854756,1720794684534,-1241.85,0.00014027,2]
[331854757,1720794684545,-500.0,0.00014027,2]
[331854758,1720794684556,-1004.68,0.00014027,2]
[331854759,1720794684566,-500.0,0.00014027,2]
[331854760,1720794684576,-955.42,0.00014027,2]
[331854761,1720794684588,-1077.37,0.00014027,2]
[331854762,1720794684597,-500.0,0.00014027,2]
[331854763,1720794684610,-1386.2,0.00014027,2]
[331854764,1720794684621,-500.0,0.00014027,2]
[331854765,1720794684631,-500.0,0.00014027,2]
[331854766,1720794684640,-500.0,0.00014027,2]
[331854767,1720794684651,-581.34,0.00014027,2]
[331854768,1720794684661,-500.0,0.00014027,2]
[331854769,1720794684671,-500.0,0.00014027,2]
[331854770,1720794684681,-500.0,0.00014027,2]
[331854771,1720794684691,-500.0,0.00014027,2]
[331854772,1720794684700,-533.16,0.00014027,2]
[331854773,1720794684713,-1428.78,0.00014027,2]
[331854774,1720794684723,-500.0,0.00014027,2]
[331854775,1720794684734,-742.08,0.00014027,2]
[331854776,1720794684744,-1248.36,0.00014027,2]
[331854777,1720794684756,-1524.13,0.00014027,2]
[331854778,1720794684766,-500.0,0.00014027,2]
[331854779,1720794684775,-392.42110838,0.00014027,2]
[331854780,1720794684785,-1206.67,0.00014027,2]
[331854781,1720794684795,-500.0,0.00014027,2]
[331854782,1720794684804,-765.74,0.00014027,2]
[331854783,1720794684814,-500.0,0.00014027,2]
[331854784,1720794684824,-500.0,0.00014027,2]
[331854785,1720794684834,-654.42,0.00014027,2]
[331854786,1720794684844,-500.0,0.00014027,2]
[331854787,1720794684854,-1158.32,0.00014027,2]
[331854788,1720794684864,-517.72,0.00014027,2]
[331854789,1720794684874,-985.8,0.00014027,2]
[331854790,1720794684884,-1158.97,0.00014027,2]
[331854791,1720794684894,-1303.35,0.00014027,2]
[331854792,1720794684904,-642.75,0.00014027,2]
[331854793,1720794684914,-500.0,0.00014027,2]
[331854794,1720794684924,-675.59,0.00014027,2]
[331854795,1720794684934,-500.0,0.00014027,2]
[331854796,1720794684944,-953.14,0.00014027,2]
[331854797,1720794684954,-1174.91,0.00014027,2]
[331854798,1720794684968,-500.0,0.00014027,2]
[331854799,1720794684978,-502.48,0.00014027,2]
[331854800,1720794684989,-500.0,0.00014027,2]
[331854801,1720794684998,-712.64,0.00014027,2]
[331854802,1720794685008,-1198.74,0.00014027,2]
[331854803,1720794685018,-839.78,0.00014027,2]
[331854804,1720794685028,-504.32,0.00014027,2]
[331854805,1720794685037,-500.0,0.00014027,2]
[331854806,1720794685047,-500.0,0.00014027,2]
[331854807,1720794685057,-1168.03,0.00014027,2]
[331854808,1720794685067,-500.0,0.00014027,2]
[331854809,1720794685077,-500.0,0.00014027,2]
[331854810,1720794685090,-1010.06,0.00014027,2]
[331854811,1720794685100,-642.47,0.00014027,2]
[331854812,1720794685110,-748.91,0.00014027,2]
[331854813,1720794685121,-551.78,0.00014027,2]
[331854814,1720794685131,-523.44,0.00014027,2]
[331854815,1720794685141,-500.0,0.00014027,2]
[331854816,1720794685152,-500.0,0.00014027,2]
[331854817,1720794685164,-822.71,0.00014027,2]
[331854818,1720794685174,-500.0,0.00014027,2]
[331854819,1720794685184,-500.0,0.00014027,2]
[331854820,1720794685194,-697.55,0.00014027,2]
[331854821,1720794685204,-500.0,0.00014027,2]
[331854822,1720794685216,-500.0,0.00014027,2]
[331854823,1720794685225,-500.0,0.00014027,2]
[331854824,1720794685235,-500.0,0.00014027,2]
[331854825,1720794685245,-712.55,0.00014027,2]
[331854826,1720794685255,-500.0,0.00014027,2]
[331854827,1720794685264,-1375.16,0.00014027,2]
[331854828,1720794685274,-500.0,0.00014027,2]
[331854829,1720794685284,-894.92,0.00014027,2]
[331854830,1720794685293,-1385.78,0.00014027,2]
[331854831,1720794685303,-1435.7,0.00014027,2]
[331854832,1720794685315,-500.0,0.00014027,2]
[331854833,1720794685325,-500.0,0.00014027,2]
[331854834,1720794685334,-500.0,0.00014027,2]
[331854835,1720794685343,-500.0,0.00014027,2]
[331854836,1720794685353,-768.75,0.00014027,2]
[331854837,1720794685362,-716.79,0.00014027,2]
[331854838,1720794685371,-1100.08,0.00014027,2]
[331854839,1720794685381,-630.92,0.00014027,2]
[331854840,1720794685391,-675.75,0.00014027,2]
[331854841,1720794685400,-603.05647287,0.00014027,2]
[331854842,1720794685410,-500.0,0.00014027,2]
[331854843,1720794685420,-566.06,0.00014027,2]
[331854844,1720794685430,-1310.79,0.00014027,2]
[331854845,1720794685440,-500.0,0.00014027,2]
[331854846,1720794685449,-500.0,0.00014027,2]
[331854847,1720794685460,-749.37,0.00014027,2]
[331854848,1720794685470,-1202.91,0.00014027,2]
[331854849,1720794685480,-511.15,0.00014027,2]
[331854850,1720794685489,-589.09,0.00014027,2]
[331854851,1720794685499,-500.0,0.00014027,2]
[331854852,1720794685509,-2219.16,0.00014027,2]
[331854853,1720794685518,-1072.56,0.00014027,2]
[331854854,1720794685528,-500.0,0.00014027,2]
[331854855,1720794685537,-500.0,0.00014027,2]
[331854856,1720794685546,-6883.09,0.00014027,2]
[331854857,1720794685556,-500.0,0.00014027,2]
[331854858,1720794685566,-1321.77,0.00014027,2]
[331854859,1720794685575,-1509.04,0.00014027,2]
[331854860,1720794685585,-636.44,0.00014027,2]
[331854861,1720794685595,-500.0,0.00014027,2]
[331854862,1720794685605,-500.0,0.00014027,2]
[331854863,1720794685615,-374.14432735,0.00014027,2]
[331854864,1720794685624,-500.0,0.00014027,2]
[331854865,1720794685634,-500.0,0.00014027,2]
[331854866,1720794685643,-500.0,0.00014027,2]
[331854867,1720794685720,-500.0,0.00014027,2]
[331854868,1720794685730,-38434.57435499,0.00014049,2]
[331854869,1720794685740,-85144.39377661,0.00014049,2]
[331854870,1720794685750,-802.996467,0.00014052,2]
[331854871,1720794685759,-381.14311,0.00014052,2]
[331854872,1720794685768,-162.62935,0.00014052,2]
[331854873,1720794685777,-273.286825,0.00014052,2]
[331854874,1720794685787,-164.130128,0.00014052,2]
[331854875,1720794685796,-150.071927,0.00014052,2]
[331854876,1720794685805,-253.08909,0.00014052,2]
[331854877,1720794685814,-374.353208,0.00014052,2]
[331854878,1720794685824,-175.595959,0.00014052,2]
[331854879,1720794685833,-229.993097,0.00014052,2]
[331854880,1720794685843,-175.595959,0.00014052,2]
[331854881,1720794685852,-687.8759252,0.00014072,2]
[331854882,1720794685861,-4864.8540942,0.00014072,2]
[331854883,1720794685871,-153.372995,0.00014081,2]
[331854884,1720794685881,-153.372995,0.00014081,2]
[331854885,1720794685890,-545.291288,0.00014081,2]
[331854886,1720794685900,-281.988154,0.00014081,2]
[331854887,1720794685909,-260.13008,0.00014081,2]
[331854888,1720794685919,-173.531171,0.00014081,2]
[331854889,1720794685928,-481.79788,0.00014081,2]
[331854890,1720794685938,-160.599293,0.00014081,2]
[331854891,1720794685948,-500.0,0.00014081,2]
[331854892,1720794685959,-531.42,0.00014081,2]
[331854893,1720794685968,-588.13,0.00014081,2]
[331854894,1720794685976,-500.0,0.00014081,2]
[331854895,1720794685985,-500.0,0.00014081,2]
[331854896,1720794685994,-624.05,0.00014081,2]
[331854897,1720794686003,-500.0,0.00014081,2]
[331854898,1720794686013,-500.0,0.00014081,2]
[331854899,1720794686023,-500.0,0.00014081,2]
[331854900,1720794686032,-500.0,0.00014081,2]
[331854901,1720794686041,-500.0,0.00014081,2]
[331854902,1720794686050,-500.0,0.00014081,2]
[331854903,1720794686059,-500.0,0.00014081,2]
[331854904,1720794686068,-500.0,0.00014081,2]
[331854905,1720794686079,-500.0,0.00014081,2]
[331854906,1720794686091,-500.0,0.00014081,2]
[331854907,1720794686100,-500.0,0.00014081,2]
[331854908,1720794686110,-500.0,0.00014081,2]
[331854909,1720794686122,-634.55,0.00014081,2]
[331854910,1720794686131,-677.95,0.00014081,2]
[331854911,1720794686140,-500.0,0.00014081,2]
[331854912,1720794686149,-500.0,0.00014081,2]
[331854913,1720794686159,-500.0,0.00014081,2]
[331854914,1720794686168,-500.0,0.00014081,2]
[331854915,1720794686177,-500.0,0.00014081,2]
[331854916,1720794686186,-500.0,0.00014081,2]
[331854917,1720794686196,-500.0,0.00014081,2]
[331854918,1720794686205,-500.0,0.00014081,2]
[331854919,1720794686216,-403.75187219,0.00014081,2]
[331854920,1720794686226,-500.0,0.00014081,2]
[331854921,1720794686235,-500.0,0.00014081,2]
[331854922,1720794686244,-500.0,0.00014081,2]
[331854923,1720794686253,-500.0,0.00014081,2]
[331854924,1720794686263,-500.0,0.00014081,2]
[331854925,1720794686272,-500.0,0.00014081,2]
[331854926,1720794686281,-500.0,0.00014081,2]
[331854927,1720794686291,-500.0,0.00014081,2]
[331854928,1720794686300,-586.38,0.00014081,2]
[331854929,1720794686310,-500.0,0.00014081,2]
[331854930,1720794686320,-500.0,0.00014081,2]
[331854931,1720794686330,-500.0,0.00014081,2]
[331854932,1720794686340,-819.14,0.00014081,2]
[331854933,1720794686351,-806.25,0.00014081,2]
[331854934,1720794686362,-500.0,0.00014081,2]
[331854935,1720794686372,-500.0,0.00014081,2]
[331854936,1720794686381,-500.0,0.00014081,2]
[331854937,1720794686390,-196.84727296,0.00014081,2]
[331854938,1720794686400,-500.0,0.00014081,2]
[331854939,1720794686409,-500.0,0.00014081,2]
[331854940,1720794686418,-500.0,0.00014081,2]
[331854941,1720794686428,-500.0,0.00014081,2]
[331854942,1720794686437,-500.0,0.00014081,2]
[331854943,1720794686446,-500.0,0.00014081,2]
[331854944,1720794686455,-500.0,0.00014081,2]
[331854945,1720794686468,-691.25,0.00014081,2]
[331854946,1720794686477,-710.01,0.00014081,2]
[331854947,1720794686486,-870.72,0.00014081,2]
[331854948,1720794686496,-239.45358974,0.00014081,2]
[331854949,1720794686505,-500.0,0.00014081,2]
[331854950,1720794686514,-500.0,0.00014081,2]
[331854951,1720794686523,-500.0,0.00014081,2]
[331854952,1720794686533,-500.0,0.00014081,2]
[331854953,1720794686542,-500.0,0.00014081,2]
[331854954,1720794686551,-500.0,0.00014081,2]
[331854955,1720794686561,-500.0,0.00014081,2]
[331854956,1720794686570,-500.0,0.00014081,2]
[331854957,1720794686579,-500.0,0.00014081,2]
[331854958,1720794686589,-500.0,0.00014081,2]
[331854959,1720794686598,-500.0,0.00014081,2]
[331854960,1720794686607,-500.0,0.00014081,2]
[331854961,1720794686616,-500.0,0.00014081,2]
[331854962,1720794686626,-454.97806988,0.00014081,2]
[331854963,1720794686635,-500.0,0.00014081,2]
[331854964,1720794686644,-570.65,0.00014081,2]
[331854965,1720794686653,-582.03,0.00014081,2]
[331854966,1720794686662,-506.37,0.00014081,2]
[331854967,1720794686672,-500.0,0.00014081,2]
[331854968,1720794686681,-500.0,0.00014081,2]
[331854969,1720794686691,-500.0,0.00014081,2]
[331854970,1720794686700,-500.0,0.00014081,2]
[331854971,1720794686713,-500.0,0.00014081,2]
[331854972,1720794686722,-500.0,0.00014081,2]
[331854973,1720794686731,-500.0,0.00014081,2]
[331854974,1720794686741,-500.0,0.00014081,2]
[331854975,1720794686750,-500.0,0.00014081,2]
[331854976,1720794686759,-500.0,0.00014081,2]
[331854977,1720794686769,-500.0,0.00014081,2]
[331854978,1720794686779,-500.0,0.00014081,2]
[331854979,1720794686788,-500.0,0.00014081,2]
[331854980,1720794686797,-646.31,0.00014081,2]
[331854981,1720794686806,-500.0,0.00014081,2]
[331854982,1720794686815,-500.0,0.00014081,2]
[331854983,1720794686824,-500.0,0.00014081,2]
[331854984,1720794686833,-500.0,0.00014081,2]
[331854985,1720794686843,-500.0,0.00014081,2]
[331854986,1720794686854,-500.0,0.00014081,2]
[331854987,1720794686863,-559.09,0.00014081,2]
[331854988,1720794686872,-500.0,0.00014081,2]
[331854989,1720794686882,-500.0,0.00014081,2]
[331854990,1720794686892,-577.19,0.00014081,2]
[331854991,1720794686902,-560.07,0.00014081,2]
[331854992,1720794686911,-1091.77,0.00014081,2]
[331854993,1720794686921,-500.0,0.00014081,2]
[331854994,1720794686930,-500.0,0.00014081,2]
[331854995,1720794686939,-500.0,0.00014081,2]
[331854996,1720794686948,-500.0,0.00014081,2]
[331854997,1720794686958,-500.0,0.00014081,2]
[331854998,1720794686968,-500.0,0.00014081,2]
[331854999,1720794686977,-613.27591406,0.00014081,2]
[331855000,1720794686986,-500.0,0.00014081,2]
[331855001,1720794686995,-480.14321456,0.00014081,2]
[331855002,1720794687004,-500.0,0.00014081,2]
[331855003,1720794687014,-500.0,0.00014081,2]
[331855004,1720794687023,-500.0,0.00014081,2]
[331855005,1720794687032,-558.7,0.00014081,2]
[331855006,1720794687040,-500.0,0.00014081,2]
[331855007,1720794687050,-500.0,0.00014081,2]
[331855008,1720794687060,-500.0,0.00014081,2]
[331855009,1720794687069,-500.0,0.00014081,2]
[331855010,1720794687079,-500.0,0.00014081,2]
[331855011,1720794687092,-500.0,0.00014081,2]
[331855012,1720794687101,-500.0,0.00014081,2]
[331855013,1720794687110,-500.0,0.00014081,2]
[331855014,1720794687121,-500.0,0.00014081,2]
[331855015,1720794687130,-349.95578365,0.00014081,2]
[331855016,1720794687139,-500.0,0.00014081,2]
[331855017,1720794687149,-500.0,0.00014081,2]
[331855018,1720794687159,-500.0,0.00014081,2]
[331855019,1720794687169,-500.0,0.00014081,2]
[331855020,1720794687178,-566.18,0.00014081,2]
[331855021,1720794687186,-500.0,0.00014081,2]
[331855022,1720794687196,-500.0,0.00014081,2]
[331855023,1720794687205,-500.0,0.00014081,2]
[331855024,1720794687219,-500.0,0.00014081,2]
[331855025,1720794687228,-557.9,0.00014081,2]
[331855026,1720794687237,-500.0,0.00014081,2]
[331855027,1720794687248,-500.0,0.00014081,2]
[331855028,1720794687257,-500.0,0.00014082,2]
[331855029,1720794687268,-524.11,0.00014082,2]
[331855030,1720794687278,-333.06596345,0.00014082,2]
[331855031,1720794687287,-213.83327241,0.00014082,2]
[331855032,1720794687297,-500.0,0.00014082,2]
[331855033,1720794687307,-798.11,0.00014082,2]
[331855034,1720794687316,-500.0,0.00014082,2]
[331855035,1720794687326,-543.87,0.00014082,2]
[331855036,1720794687336,-500.0,0.00014082,2]
[331855037,1720794687345,-714.43,0.00014082,2]
[331855038,1720794687354,-717.24,0.00014082,2]
[331855039,1720794687363,-808.16,0.00014082,2]
[331855040,1720794687373,-574.63,0.00014082,2]
[331855041,1720794687383,-625.21,0.00014082,2]
[331855042,1720794687392,-945.63,0.00014082,2]
[331855043,1720794687402,-500.0,0.00014082,2]
[331855044,1720794687411,-500.0,0.00014082,2]
[331855045,1720794687421,-500.0,0.00014082,2]
[331855046,1720794687430,-273.44878528,0.00014082,2]
[331855047,1720794687440,-500.0,0.00014082,2]
[331855048,1720794687450,-677.22,0.00014082,2]
[331855049,1720794687461,-500.0,0.00014082,2]
[331855050,1720794687470,-500.0,0.00014082,2]
[331855051,1720794687480,-567.5,0.00014082,2]
[331855052,1720794687488,-799.61,0.00014082,2]
[331855053,1720794687498,-500.0,0.00014082,2]
[331855054,1720794687507,-500.0,0.00014082,2]
[331855055,1720794687516,-500.0,0.00014082,2]
[331855056,1720794687525,-500.0,0.00014082,2]
[331855057,1720794687535,-500.0,0.00014082,2]
[331855058,1720794687544,-743.72,0.00014082,2]
[331855059,1720794687553,-500.0,0.00014082,2]
[331855060,1720794687562,-500.0,0.00014082,2]
[331855061,1720794687571,-500.0,0.00014082,2]
[331855062,1720794687580,-448.73901523,0.00014082,2]
[331855063,1720794687590,-500.0,0.00014082,2]
[331855064,1720794687599,-500.0,0.00014082,2]
[331855065,1720794687608,-500.0,0.00014082,2]
[331855066,1720794687618,-608.66,0.00014082,2]
[331855067,1720794687627,-500.0,0.00014082,2]
[331855068,1720794687635,-500.0,0.00014082,2]
[331855069,1720794687644,-785.46,0.00014082,2]
[331855070,1720794687654,-506.96,0.00014082,2]
[331855071,1720794687664,-500.0,0.00014082,2]
[331855072,1720794687674,-523.01,0.00014082,2]
[331855073,1720794687683,-532.23,0.00014082,2]
[331855074,1720794687692,-659.11,0.00014082,2]
[331855075,1720794687702,-500.0,0.00014082,2]
[331855076,1720794687715,-928.6,0.00014082,2]
[331855077,1720794687725,-500.0,0.00014082,2]
[331855078,1720794687735,-500.0,0.00014082,2]
[331855079,1720794687744,-857.04,0.00014082,2]
[331855080,1720794687754,-536.84,0.00014082,2]
[331855081,1720794687764,-1012.71,0.00014082,2]
[331855082,1720794687774,-500.0,0.00014082,2]
[331855083,1720794687783,-500.0,0.00014082,2]
[331855084,1720794687793,-787.1,0.00014082,2]
[331855085,1720794687802,-500.0,0.00014082,2]
[331855086,1720794687812,-500.0,0.00014082,2]
[331855087,1720794687822,-880.19,0.00014082,2]
[331855088,1720794687831,-545.56,0.00014082,2]
[331855089,1720794687841,-500.0,0.00014082,2]
[331855090,1720794687851,-714.66,0.00014082,2]
[331855091,1720794687860,-500.0,0.00014082,2]
[331855092,1720794687870,-326.55813278,0.00014082,2]
[331855093,1720794687881,-500.0,0.00014082,2]
[331855094,1720794687891,-500.0,0.00014082,2]
[331855095,1720794687900,-633.29,0.00014082,2]
[331855096,1720794687910,-728.52,0.00014082,2]
[331855097,1720794687920,-500.0,0.00014082,2]
[331855098,1720794687930,-471.13611322,0.00014082,2]
[331855099,1720794687940,-669.08,0.00014082,2]
[331855100,1720794687951,-500.0,0.00014082,2]
[331855101,1720794687963,-433.60799417,0.00014082,2]
[331855102,1720794687973,-500.0,0.00014082,2]
[331855103,1720794687983,-718.04,0.00014082,2]
[331855104,1720794687993,-500.0,0.00014082,2]
[331855105,1720794688002,-500.0,0.00014082,2]
[331855106,1720794688012,-500.0,0.00014082,2]
[331855107,1720794688021,-500.0,0.00014082,2]
[331855108,1720794688031,-500.0,0.00014082,2]
[331855109,1720794688040,-662.74,0.00014082,2]
[331855110,1720794688050,-538.56101912,0.00014082,2]
[331855111,1720794688060,-605.31,0.00014082,2]
[331855112,1720794688071,-612.82,0.00014082,2]
[331855113,1720794688082,-500.0,0.00014082,2]
[331855114,1720794688093,-564.04,0.00014082,2]
[331855115,1720794688102,-840.15,0.00014082,2]
[331855116,1720794688112,-500.0,0.00014082,2]
[331855117,1720794688122,-976.09,0.00014082,2]
[331855118,1720794688132,-883.19,0.00014082,2]
[331855119,1720794688141,-500.0,0.00014082,2]
[331855120,1720794688151,-518.94,0.00014082,2]
[331855121,1720794688162,-500.0,0.00014082,2]
[331855122,1720794688173,-500.0,0.00014082,2]
[331855123,1720794688183,-804.2,0.00014082,2]
[331855124,1720794688192,-861.95,0.00014082,2]
[331855125,1720794688202,-642.51,0.00014082,2]
[331855126,1720794688214,-695.85,0.00014082,2]
[331855127,1720794688223,-595.38,0.00014082,2]
[331855128,1720794688233,-947.63,0.00014082,2]
[331855129,1720794688243,-500.0,0.00014082,2]
[331855130,1720794688253,-500.0,0.00014082,2]
[331855131,1720794688263,-500.0,0.00014082,2]
[331855132,1720794688272,-500.0,0.00014082,2]
[331855133,1720794688283,-505.8,0.00014082,2]
[331855134,1720794688292,-594.81,0.00014082,2]
[331855135,1720794688302,-1155.19,0.00014082,2]
[331855136,1720794688311,-544.81,0.00014082,2]
[331855137,1720794688322,-666.06,0.00014082,2]
[331855138,1720794688332,-500.0,0.00014082,2]
[331855139,1720794688342,-500.0,0.00014082,2]
[331855140,1720794688352,-500.0,0.00014082,2]
[331855141,1720794688362,-574.05,0.00014082,2]
[331855142,1720794688372,-713.58,0.00014082,2]
[331855143,1720794688383,-523.05,0.00014082,2]
[331855144,1720794688392,-563.94,0.00014082,2]
[331855145,1720794688402,-500.0,0.00014082,2]
[331855146,1720794688412,-500.0,0.00014082,2]
[331855147,1720794688422,-500.0,0.00014082,2]
[331855148,1720794688432,-520.25,0.00014082,2]
[331855149,1720794688442,-712.83,0.00014082,2]
[331855150,1720794688452,-821.92,0.00014082,2]
[331855151,1720794688463,-1374.04,0.00014082,2]
[331855152,1720794688473,-687.92,0.00014082,2]
[331855153,1720794688483,-883.42,0.00014082,2]
[331855154,1720794688493,-517.54,0.00014082,2]
[331855155,1720794688503,-667.83,0.00014082,2]
[331855156,1720794688512,-500.0,0.00014082,2]
[331855157,1720794688522,-500.0,0.00014082,2]
[331855158,1720794688532,-1125.56,0.00014082,2]
[331855159,1720794688541,-804.76,0.00014082,2]
[331855160,1720794688551,-500.0,0.00014082,2]
[331855161,1720794688561,-500.0,0.00014082,2]
[331855162,1720794688571,-861.99,0.00014082,2]
[331855163,1720794688582,-500.0,0.00014082,2]
[331855164,1720794688592,-500.0,0.00014082,2]
[331855165,1720794688602,-1018.26,0.00014082,2]
[331855166,1720794688611,-833.97,0.00014082,2]
[331855167,1720794688621,-500.0,0.00014082,2]
[331855168,1720794688632,-1246.88,0.00014082,2]
[331855169,1720794688642,-453.93,0.00014082,2]
[331855170,1720794688651,-500.0,0.00014082,2]
[331855171,1720794688661,-500.0,0.00014082,2]
[331855172,1720794688672,-500.0,0.00014082,2]
[331855173,1720794688681,-743.04,0.00014082,2]
[331855174,1720794688691,-500.0,0.00014082,2]
[331855175,1720794688700,-627.82,0.00014082,2]
[331855176,1720794688712,-500.0,0.00014082,2]
[331855177,1720794688721,-500.0,0.00014082,2]
[331855178,1720794688731,-789.19,0.00014082,2]
[331855179,1720794688740,-564.93,0.00014082,2]
[331855180,1720794688751,-872.58,0.00014082,2]
[331855181,1720794688761,-500.0,0.00014082,2]
[331855182,1720794688771,-500.0,0.00014082,2]
[331855183,1720794688781,-631.32,0.00014082,2]
[331855184,1720794688790,-500.0,0.00014082,2]
[331855185,1720794688801,-500.0,0.00014082,2]
[331855186,1720794688810,-1303.41,0.00014082,2]
[331855187,1720794688820,-987.74,0.00014082,2]
[331855188,1720794688831,-1057.82,0.00014082,2]
[331855189,1720794688842,-500.0,0.00014082,2]
[331855190,1720794688852,-500.0,0.00014082,2]
[331855191,1720794688863,-500.0,0.00014082,2]
[331855192,1720794688873,-741.61,0.00014082,2]
[331855193,1720794688883,-500.0,0.00014082,2]
[331855194,1720794688894,-759.54,0.00014082,2]
[331855195,1720794688903,-675.64,0.00014082,2]
[331855196,1720794688913,-546.31,0.00014082,2]
[331855197,1720794688923,-1372.87,0.00014082,2]